fUSD/lending_fUSD_20240412
["ID","MTS","AMOUNT","RATE_DAILY","PERIOD"]
[322249918,1712913068118,-1305.4,0.00029589,2]
[322249919,1712913068128,-1858.46,0.00029589,2]
[322249920,1712913068137,-844.56,0.00029589,2]
[322249921,1712913068147,-500.0,0.00029589,2]
[322249922,1712913068157,-510.32,0.00029589,2]
[322249923,1712913068167,-920.2,0.00029589,2]
[322249924,1712913068175,-203.07197739,0.00029589,2]
[322249925,1712913068184,-1490.11,0.00029589,2]
[322249926,1712913068194,-662.41,0.00029589,2]
[322249927,1712913068203,-500.0,0.00029589,2]
[322249928,1712913068213,-663.55,0.00029589,2]
[322249929,1712913068222,-500.0,0.00029589,2]
[322249930,1712913068232,-4281.14,0.00029589,2]
[322249931,1712913068242,-500.0,0.00029589,2]
[322249932,1712913068252,-500.0,0.00029589,2]
[322249933,1712913068264,-500.0,0.00029589,2]
[322249934,1712913068274,-358.597281,0.00029589,14]
[322249935,1712913068284,-673.80216358,0.00029599,2]
[322249936,1712913068293,-927.9420493,0.00029599,2]
[322249937,1712913068304,-175.29854916,0.00029599,2]
[322249938,1712913068314,-163.459364,0.00029624,2]
[322249939,1712913068326,-154.20406454,0.00029654,2]
[322249940,1712913068337,-153.32512065,0.00029739,2]
[322249941,1712913068347,-6171.33,0.00029815,2]
[322249942,1712913068356,-29999.99,0.00029815,2]
[322249943,1712913068366,-19999.99,0.00029815,2]
[322249944,1712913068376,-1074.88,0.00029815,2]
[322249945,1712913068387,-500.0,0.00029863,2]
[322249946,1712913068397,-566.32,0.00029863,2]
[322249947,1712913068406,-317.94171456,0.00029863,2]
[322249948,1712913068416,-500.0,0.00029863,2]
[322249949,1712913068424,-500.0,0.00029863,2]
[322249950,1712913068433,-500.0,0.00029863,2]
[322249951,1712913068443,-500.0,0.00029863,2]
[322249952,1712913068452,-579.74,0.00029863,2]
[322249953,1712913068462,-500.0,0.00029863,2]
[322249954,1712913068470,-269.73,0.00029863,2]
[322249955,1712913068480,-290.19,0.00029863,2]
[322249956,1712913068489,-500.0,0.00029863,2]
[322249957,1712913068498,-500.0,0.00029863,2]
[322249958,1712913068507,-500.0,0.00029863,2]
[322249959,1712913068516,-500.0,0.00029863,2]
[322249960,1712913068526,-500.0,0.00029863,2]
[322249961,1712913068535,-500.0,0.00029863,2]
[322249962,1712913068545,-500.0,0.00029863,2]
[322249963,1712913068554,-500.0,0.00029863,2]
[322249964,1712913068563,-500.0,0.00029863,2]
[322249965,1712913068572,-500.0,0.00029863,2]
[322249966,1712913068582,-500.0,0.00029863,2]
[322249967,1712913068592,-500.0,0.00029863,2]
[322249968,1712913068603,-500.0,0.00029863,2]
[322249969,1712913068613,-500.0,0.00029863,2]
[322249970,1712913068622,-500.0,0.00029863,2]
[322249971,1712913068631,-500.0,0.00029863,2]
[322249972,1712913068642,-500.0,0.00029863,2]
[322249973,1712913068651,-460.7479823,0.00029863,2]
[322249974,1712913068660,-500.0,0.00029863,2]
[322249975,1712913068670,-500.0,0.00029863,2]
[322249976,1712913068680,-500.0,0.00029863,2]
[322249977,1712913068689,-500.0,0.00029863,2]
[322249978,1712913068699,-150.0,0.00029863,2]
[322249979,1712913068708,-500.0,0.00029863,2]
[322249980,1712913068717,-500.0,0.00029863,2]
[322249981,1712913068726,-500.0,0.00029863,2]
[322249982,1712913068736,-522.3,0.00029863,2]
[322249983,1712913068746,-500.0,0.00029863,2]
[322249984,1712913068756,-500.0,0.00029863,2]
[322249985,1712913068765,-500.0,0.00029863,2]
[322249986,1712913068774,-532.15137175,0.00029863,2]
[322249987,1712913068783,-500.0,0.00029863,2]
[322249988,1712913068792,-500.0,0.00029863,2]
[322249989,1712913068802,-500.0,0.00029863,2]
[322249990,1712913068811,-500.0,0.00029863,2]
[322249991,1712913068820,-500.0,0.00029863,2]
[322249992,1712913068830,-500.0,0.00029863,2]
[322249993,1712913068839,-595.67,0.00029863,2]
[322249994,1712913068848,-500.0,0.00029863,2]
[322249995,1712913068857,-554.42,0.00029863,2]
[322249996,1712913068866,-500.0,0.00029863,2]
[322249997,1712913068875,-500.0,0.00029863,2]
[322249998,1712913068884,-500.0,0.00029863,2]
[322249999,1712913068892,-500.0,0.00029863,2]
[322250000,1712913068902,-500.0,0.00029863,2]
[322250001,1712913068911,-500.0,0.00029863,2]
[322250002,1712913068920,-1693.89,0.00029863,2]
[322250003,1712913068929,-1344.19,0.00029863,2]
[322250004,1712913068938,-500.0,0.00029863,2]
[322250005,1712913068947,-500.0,0.00029863,2]
[322250006,1712913068956,-151.0,0.00029863,7]
[322250007,1712913068966,-500.0,0.00029863,2]
[322250008,1712913068975,-557.5,0.00029863,2]
[322250009,1712913068985,-500.0,0.00029863,2]
[322250010,1712913068994,-350.12034343,0.00029863,2]
[322250011,1712913069003,-1426.98,0.00029863,2]
[322250012,1712913069013,-500.0,0.00029863,2]
[322250013,1712913069021,-500.0,0.00029863,2]
[322250014,1712913069153,-500.0,0.00029863,2]
[322250015,1712913069164,-613.24,0.00029863,2]
[322250016,1712913069173,-4902.69,0.00029863,2]
[322250017,1712913069182,-500.0,0.00029863,2]
[322250018,1712913069191,-589.66,0.00029863,2]
[322250019,1712913069200,-500.0,0.00029863,2]
[322250020,1712913069210,-500.0,0.00029863,2]
[322250021,1712913069219,-500.0,0.00029863,2]
[322250022,1712913069228,-500.0,0.00029863,2]
[322250023,1712913069237,-500.0,0.00029863,2]
[322250024,1712913069246,-500.0,0.00029863,2]
[322250025,1712913069255,-783.37,0.00029863,2]
[322250026,1712913069265,-156.415468,0.00029863,7]
[322250027,1712913069274,-429.35412327,0.00029863,2]
[322250028,1712913069283,-156.415468,0.00029863,7]
[322250029,1712913069292,-500.0,0.00029863,2]
[322250030,1712913069301,-500.0,0.00029863,2]
[322250031,1712913069311,-500.0,0.00029863,2]
[322250032,1712913069320,-500.0,0.00029863,2]
[322250033,1712913069330,-500.0,0.00029863,2]
[322250034,1712913069339,-1116.46,0.00029863,2]
[322250035,1712913069348,-500.0,0.00029863,2]
[322250036,1712913069358,-500.0,0.00029863,2]
[322250037,1712913069367,-942.27,0.00029863,2]
[322250038,1712913069376,-500.0,0.00029863,2]
[322250039,1712913069385,-500.0,0.00029863,2]
[322250040,1712913069394,-1102.09,0.00029863,2]
[322250041,1712913069403,-724.59,0.00029863,2]
[322250042,1712913069411,-500.0,0.00029863,2]
[322250043,1712913069420,-710.01,0.00029863,2]
[322250044,1712913069429,-6220.28,0.00029863,2]
[322250045,1712913069439,-500.0,0.00029863,2]
[322250046,1712913069448,-500.0,0.00029863,2]
[322250047,1712913069458,-500.0,0.00029863,2]
[322250048,1712913069468,-500.0,0.00029863,2]
[322250049,1712913069478,-500.0,0.00029863,2]
[322250050,1712913069488,-500.0,0.00029863,2]
[322250051,1712913069498,-652.05,0.00029863,2]
[322250052,1712913069508,-500.0,0.00029863,2]
[322250053,1712913069518,-500.0,0.00029863,2]
[322250054,1712913069527,-2583.5,0.00029863,2]
[322250055,1712913069537,-1053.91,0.00029863,2]
[322250056,1712913069546,-2164.81,0.00029863,2]
[322250057,1712913069556,-500.0,0.00029863,2]
[322250058,1712913069566,-439.65455482,0.00029863,2]
[322250059,1712913069576,-500.0,0.00029863,2]
[322250060,1712913069587,-500.0,0.00029863,2]
[322250061,1712913069601,-500.0,0.00029863,2]
[322250062,1712913069610,-1027.51,0.00029863,2]
[322250063,1712913069619,-500.0,0.00029863,2]
[322250064,1712913069628,-2080.21,0.00029863,2]
[322250065,1712913069640,-1105.7,0.00029863,2]
[322250066,1712913069649,-1530.77,0.00029863,2]
[322250067,1712913069660,-1722.55,0.00029863,2]
[322250068,1712913069671,-583.55,0.00029863,2]
[322250069,1712913069681,-500.0,0.00029863,2]
[322250070,1712913069691,-500.0,0.00029863,2]
[322250071,1712913069700,-1217.73,0.00029863,2]
[322250072,1712913069710,-11130.2,0.00029863,2]
[322250073,1712913069720,-821.08,0.00029863,2]
[322250074,1712913069729,-500.0,0.00029863,2]
[322250075,1712913069738,-500.0,0.00029863,2]
[322250076,1712913069747,-500.0,0.00029863,2]
[322250077,1712913069758,-1938.7,0.00029863,2]
[322250078,1712913069767,-500.0,0.00029863,2]
[322250079,1712913069777,-500.0,0.00029863,2]
[322250080,1712913069787,-930.87,0.00029863,2]
[322250081,1712913069797,-2176.5,0.00029863,2]
[322250082,1712913069806,-500.0,0.00029863,2]
[322250083,1712913069815,-500.0,0.00029863,2]
[322250084,1712913069824,-551.46,0.00029863,2]
[322250085,1712913069837,-2252.47,0.00029863,2]
[322250086,1712913069846,-500.0,0.00029863,2]
[322250087,1712913069856,-500.0,0.00029863,2]
[322250088,1712913069866,-532.52382139,0.00029863,2]
[322250089,1712913069875,-500.0,0.00029863,2]
[322250090,1712913069885,-1111.76,0.00029863,2]
[322250091,1712913069894,-621.09,0.00029863,2]
[322250092,1712913069903,-779.64,0.00029863,2]
[322250093,1712913069913,-1124.57,0.00029863,2]
[322250094,1712913069923,-500.0,0.00029863,2]
[322250095,1712913069932,-500.0,0.00029863,2]
[322250096,1712913069941,-500.0,0.00029863,2]
[322250097,1712913069951,-914.69,0.00029863,2]
[322250098,1712913069960,-925.11,0.00029863,2]
[322250099,1712913069970,-1311.53,0.00029863,2]
[322250100,1712913069980,-888.39,0.00029863,2]
[322250101,1712913069990,-500.0,0.00029863,2]
[322250102,1712913070000,-742.51,0.00029863,2]
[322250103,1712913070010,-500.0,0.00029863,2]
[322250104,1712913070019,-500.0,0.00029863,2]
[322250105,1712913070028,-1305.4,0.00029863,2]
[322250106,1712913070038,-1858.46,0.00029863,2]
[322250107,1712913070047,-844.56,0.00029863,2]
[322250108,1712913070057,-500.0,0.00029863,2]
[322250109,1712913070066,-510.32,0.00029863,2]
[322250110,1712913070075,-920.2,0.00029863,2]
[322250111,1712913070086,-1490.11,0.00029863,2]
[322250112,1712913070096,-662.41,0.00029863,2]
[322250113,1712913070106,-500.0,0.00029863,2]
[322250114,1712913070115,-663.55,0.00029863,2]
[322250115,1712913070124,-500.0,0.00029863,2]
[322250116,1712913070134,-4281.14,0.00029863,2]
[322250117,1712913070143,-500.0,0.00029863,2]
[322250118,1712913070153,-500.0,0.00029863,2]
[322250119,1712913070163,-500.0,0.00029863,2]
[322250120,1712913070172,-150.0,0.000299,2]
[322250121,1712913070182,-84213.27601217,0.00029969,2]
[322250122,1712913070191,-155.37267511,0.00029969,2]
[322250123,1712913070201,-155.18262749,0.00029969,2]
[322250124,1712913070221,-707.83928995,0.00029969,2]
[322250125,1712913070239,-155.0,0.00029969,2]
[322250126,1712913070253,-155.35946711,0.00029969,2]
[322250127,1712913070271,-736.72166263,0.00029969,2]
[322250128,1712913070289,-180.72667919,0.00029969,2]
[322250129,1712913070303,-500.0,0.0003,3]
[322250130,1712913070320,-924.68,0.00030036,2]
[322250131,1712913070337,-155.04246572,0.00030067,2]
[322250132,1712913070354,-5000.0,0.000301,4]
[322250133,1712913070366,-500.0,0.00030136,2]
[322250134,1712913070384,-500.0,0.00030136,2]
[322250135,1712913070401,-500.0,0.00030136,2]
[322250136,1712913070417,-500.0,0.00030136,2]
[322250137,1712913070433,-500.0,0.00030136,2]
[322250138,1712913070451,-500.0,0.00030136,2]
[322250139,1712913070467,-500.0,0.00030136,2]
[322250140,1712913070481,-500.0,0.00030136,2]
[322250141,1712913070492,-500.0,0.00030136,2]
[322250142,1712913070506,-500.0,0.00030136,2]
[322250143,1712913070521,-500.0,0.00030136,2]
[322250144,1712913070535,-393.32227434,0.00030136,2]
[322250145,1712913070546,-500.0,0.00030136,2]
[322250146,1712913070561,-500.0,0.00030136,2]
[322250147,1712913070574,-500.0,0.00030136,2]
[322250148,1712913070588,-500.0,0.00030136,2]
[322250149,1712913070605,-500.0,0.00030136,2]
[322250150,1712913070618,-500.0,0.00030136,2]
[322250151,1712913070631,-500.0,0.00030136,2]
[322250152,1712913070646,-500.0,0.00030136,2]
[322250153,1712913070658,-500.0,0.00030136,2]
[322250154,1712913070671,-500.0,0.00030136,2]
[322250155,1712913070687,-500.0,0.00030136,2]
[322250156,1712913070700,-213.81610656,0.00030136,2]
[322250157,1712913070712,-500.0,0.00030136,2]
[322250158,1712913070725,-500.0,0.00030136,2]
[322250159,1712913070738,-500.0,0.00030136,2]
[322250160,1712913070751,-522.3,0.00030136,2]
[322250161,1712913070764,-500.0,0.00030136,2]
[322250162,1712913070778,-500.0,0.00030136,2]
[322250163,1712913070791,-500.0,0.00030136,2]
[322250164,1712913070804,-500.0,0.00030136,2]
[322250165,1712913070817,-500.0,0.00030136,2]
[322250166,1712913070832,-500.0,0.00030136,2]
[322250167,1712913070844,-500.0,0.00030136,2]
[322250168,1712913070858,-500.0,0.00030136,2]
[322250169,1712913070870,-500.0,0.00030136,2]
[322250170,1712913070883,-595.67,0.00030136,2]
[322250171,1712913070896,-500.0,0.00030136,2]
[322250172,1712913070908,-554.42,0.00030136,2]
[322250173,1712913070921,-500.0,0.00030136,2]
[322250174,1712913070933,-500.0,0.00030136,2]
[322250175,1712913070946,-500.0,0.00030136,2]
[322250176,1712913070959,-464.98727452,0.00030136,2]
[322250177,1712913070972,-500.0,0.00030136,2]
[322250178,1712913070984,-500.0,0.00030136,2]
[322250179,1712913070997,-1693.89,0.00030136,2]
[322250180,1712913071009,-1344.19,0.00030136,2]
[322250181,1712913071022,-500.0,0.00030136,2]
[322250182,1712913071034,-395.56031077,0.00030136,2]
[322250183,1712913071047,-500.0,0.00030136,2]
[322250184,1712913071060,-557.5,0.00030136,2]
[322250185,1712913071073,-500.0,0.00030136,2]
[322250186,1712913071087,-1426.98,0.00030136,2]
[322250187,1712913071099,-500.0,0.00030136,2]
[322250188,1712913071112,-500.0,0.00030136,2]
[322250189,1712913071125,-500.0,0.00030136,2]
[322250190,1712913071138,-613.24,0.00030136,2]
[322250191,1712913071151,-4902.69,0.00030136,2]
[322250192,1712913071165,-255.15228615,0.00030136,2]
[322250193,1712913071178,-589.66,0.00030136,2]
[322250194,1712913071191,-500.0,0.00030136,2]
[322250195,1712913071203,-500.0,0.00030136,2]
[322250196,1712913071217,-220.82843786,0.00030136,2]
[322250197,1712913071230,-500.0,0.00030136,2]
[322250198,1712913071243,-500.0,0.00030136,2]
[322250199,1712913071256,-602.03180547,0.00030136,2]
[322250200,1712913071269,-783.37,0.00030136,2]
[322250201,1712913071282,-500.0,0.00030136,2]
[322250202,1712913071295,-500.0,0.00030136,2]
[322250203,1712913071307,-500.0,0.00030136,2]
[322250204,1712913071320,-500.0,0.00030136,2]
[322250205,1712913071333,-500.0,0.00030136,2]
[322250206,1712913071346,-1116.46,0.00030136,2]
[322250207,1712913071359,-500.0,0.00030136,2]
[322250208,1712913071372,-500.0,0.00030136,2]
[322250209,1712913071385,-942.27,0.00030136,2]
[322250210,1712913071398,-500.0,0.00030136,2]
[322250211,1712913071411,-500.0,0.00030136,2]
[322250212,1712913071424,-1102.09,0.00030136,2]
[322250213,1712913071438,-724.59,0.00030136,2]
[322250214,1712913071451,-500.0,0.00030136,2]
[322250215,1712913071465,-710.01,0.00030136,2]
[322250216,1712913071479,-6220.28,0.00030136,2]
[322250217,1712913071488,-500.0,0.00030136,2]
[322250218,1712913071498,-500.0,0.00030136,2]
[322250219,1712913071507,-500.0,0.00030136,2]
[322250220,1712913071518,-500.0,0.00030136,2]
[322250221,1712913071527,-500.0,0.00030136,2]
[322250222,1712913071537,-212.83655361,0.00030136,2]
[322250223,1712913071547,-652.05,0.00030136,2]
[322250224,1712913071557,-500.0,0.00030136,2]
[322250225,1712913071567,-500.0,0.00030136,2]
[322250226,1712913071799,-2583.5,0.00030136,2]
[322250227,1712913071812,-1053.91,0.00030136,2]
[322250228,1712913071822,-2164.81,0.00030136,2]
[322250229,1712913071834,-500.0,0.00030136,2]
[322250230,1712913071843,-500.0,0.00030136,2]
[322250231,1712913071852,-500.0,0.00030136,2]
[322250232,1712913071862,-500.0,0.00030136,2]
[322250233,1712913071871,-1027.51,0.00030136,2]
[322250234,1712913071881,-500.0,0.00030136,2]
[322250235,1712913071891,-2080.21,0.00030136,2]
[322250236,1712913071901,-1105.7,0.00030136,2]
[322250237,1712913071911,-1530.77,0.00030136,2]
[322250238,1712913071921,-1722.55,0.00030136,2]
[322250239,1712913071931,-583.55,0.00030136,2]
[322250240,1712913071942,-500.0,0.00030136,2]
[322250241,1712913071951,-500.0,0.00030136,2]
[322250242,1712913071961,-1217.73,0.00030136,2]
[322250243,1712913071971,-11130.2,0.00030136,2]
[322250244,1712913071981,-821.08,0.00030136,2]
[322250245,1712913071991,-500.0,0.00030136,2]
[322250246,1712913072001,-500.0,0.00030136,2]
[322250247,1712913072010,-500.0,0.00030136,2]
[322250248,1712913072020,-1938.7,0.00030136,2]
[322250249,1712913072030,-500.0,0.00030136,2]
[322250250,1712913072040,-500.0,0.00030136,2]
[322250251,1712913072049,-930.87,0.00030136,2]
[322250252,1712913072059,-2176.5,0.00030136,2]
[322250253,1712913072069,-500.0,0.00030136,2]
[322250254,1712913072078,-500.0,0.00030136,2]
[322250255,1712913072089,-551.46,0.00030136,2]
[322250256,1712913072099,-2252.47,0.00030136,2]
[322250257,1712913072109,-500.0,0.00030136,2]
[322250258,1712913072119,-500.0,0.00030136,2]
[322250259,1712913072128,-500.0,0.00030136,2]
[322250260,1712913072138,-1111.76,0.00030136,2]
[322250261,1712913072147,-621.09,0.00030136,2]
[322250262,1712913072157,-779.64,0.00030136,2]
[322250263,1712913072166,-1124.57,0.00030136,2]
[322250264,1712913072176,-500.0,0.00030136,2]
[322250265,1712913072185,-500.0,0.00030136,2]
[322250266,1712913072194,-495.86534136,0.00030136,2]
[322250267,1712913072204,-914.69,0.00030136,2]
[322250268,1712913072213,-925.11,0.00030136,2]
[322250269,1712913072223,-1311.53,0.00030136,2]
[322250270,1712913072232,-888.39,0.00030136,2]
[322250271,1712913072243,-500.0,0.00030136,2]
[322250272,1712913072252,-742.51,0.00030136,2]
[322250273,1712913072263,-500.0,0.00030136,2]
[322250274,1712913072273,-374.041212,0.00030136,2]
[322250275,1712913072282,-1305.4,0.00030136,2]
[322250276,1712913072292,-1858.46,0.00030136,2]
[322250277,1712913072302,-844.56,0.00030136,2]
[322250278,1712913072311,-500.0,0.00030136,2]
[322250279,1712913072321,-510.32,0.00030136,2]
[322250280,1712913072333,-920.2,0.00030136,2]
[322250281,1712913072343,-1490.11,0.00030136,2]
[322250282,1712913072353,-662.41,0.00030136,2]
[322250283,1712913072363,-500.0,0.00030136,2]
[322250284,1712913072373,-663.55,0.00030136,2]
[322250285,1712913072383,-500.0,0.00030136,2]
[322250286,1712913072394,-4281.14,0.00030136,2]
[322250287,1712913072404,-500.0,0.00030136,2]
[322250288,1712913072414,-500.0,0.00030136,2]
[322250289,1712913072425,-229.86,0.00030137,2]
[322250290,1712913072436,-535.0,0.00030137,2]
[322250291,1712913072445,-742.0,0.00030137,2]
[322250292,1712913072455,-154.20406454,0.0003014,7]
[322250293,1712913072465,-180.0,0.00030258,2]
[322250294,1712913072474,-519.49,0.000303,2]
[322250295,1712913072484,-1018.83,0.00030371,2]
[322250296,1712913072494,-154.03278192,0.00030382,7]
[322250297,1712913072504,-677.6,0.000304,2]
[322250298,1712913072513,-150.0,0.000304,2]
[322250299,1712913072523,-327.94,0.0003041,2]
[322250300,1712913072533,-525.37,0.0003041,2]
[322250301,1712913072543,-216.52,0.0003041,2]
[322250302,1712913072553,-500.0,0.0003041,2]
[322250303,1712913072563,-500.0,0.0003041,2]
[322250304,1712913072573,-500.0,0.0003041,2]
[322250305,1712913072583,-500.0,0.0003041,2]
[322250306,1712913072594,-500.0,0.0003041,2]
[322250307,1712913072606,-500.0,0.0003041,2]
[322250308,1712913072618,-500.0,0.0003041,2]
[322250309,1712913072628,-500.0,0.0003041,2]
[322250310,1712913072638,-500.0,0.0003041,2]
[322250311,1712913072648,-500.0,0.0003041,2]
[322250312,1712913072657,-500.0,0.0003041,2]
[322250313,1712913072667,-500.0,0.0003041,2]
[322250314,1712913072678,-500.0,0.0003041,2]
[322250315,1712913072688,-500.0,0.0003041,2]
[322250316,1712913072697,-500.0,0.0003041,2]
[322250317,1712913072706,-522.3,0.0003041,2]
[322250318,1712913072715,-500.0,0.0003041,2]
[322250319,1712913072724,-500.0,0.0003041,2]
[322250320,1712913072733,-500.0,0.0003041,2]
[322250321,1712913072744,-500.0,0.0003041,2]
[322250322,1712913072753,-500.0,0.0003041,2]
[322250323,1712913072763,-500.0,0.0003041,2]
[322250324,1712913072773,-500.0,0.0003041,2]
[322250325,1712913072783,-500.0,0.0003041,2]
[322250326,1712913072792,-500.0,0.0003041,2]
[322250327,1712913072802,-595.67,0.0003041,2]
[322250328,1712913072812,-500.0,0.0003041,2]
[322250329,1712913072821,-554.42,0.0003041,2]
[322250330,1712913072832,-500.0,0.0003041,2]
[322250331,1712913072842,-500.0,0.0003041,2]
[322250332,1712913072851,-500.0,0.0003041,2]
[322250333,1712913072861,-629.42171111,0.0003041,2]
[322250334,1712913072870,-500.0,0.0003041,2]
[322250335,1712913072880,-1693.89,0.0003041,2]
[322250336,1712913072890,-1344.19,0.0003041,2]
[322250337,1712913072899,-500.0,0.0003041,2]
[322250338,1712913072908,-500.0,0.0003041,2]
[322250339,1712913072917,-557.5,0.0003041,2]
[322250340,1712913072926,-500.0,0.0003041,2]
[322250341,1712913072936,-1426.98,0.0003041,2]
[322250342,1712913072945,-500.0,0.0003041,2]
[322250343,1712913072954,-500.0,0.0003041,2]
[322250344,1712913072964,-500.0,0.0003041,2]
[322250345,1712913072972,-613.24,0.0003041,2]
[322250346,1712913072981,-4902.69,0.0003041,2]
[322250347,1712913072991,-589.66,0.0003041,2]
[322250348,1712913073000,-500.0,0.0003041,2]
[322250349,1712913073009,-500.0,0.0003041,2]
[322250350,1712913073018,-500.0,0.0003041,2]
[322250351,1712913073027,-500.0,0.0003041,2]
[322250352,1712913073036,-783.37,0.0003041,2]
[322250353,1712913073045,-500.0,0.0003041,2]
[322250354,1712913073054,-500.0,0.0003041,2]
[322250355,1712913073064,-500.0,0.0003041,2]
[322250356,1712913073073,-500.0,0.0003041,2]
[322250357,1712913073083,-500.0,0.0003041,2]
[322250358,1712913073092,-1116.46,0.0003041,2]
[322250359,1712913073101,-500.0,0.0003041,2]
[322250360,1712913073111,-500.0,0.0003041,2]
[322250361,1712913073121,-942.27,0.0003041,2]
[322250362,1712913073131,-500.0,0.0003041,2]
[322250363,1712913073140,-500.0,0.0003041,2]
[322250364,1712913073149,-1102.09,0.0003041,2]
[322250365,1712913073158,-724.59,0.0003041,2]
[322250366,1712913073168,-500.0,0.0003041,2]
[322250367,1712913073177,-710.01,0.0003041,2]
[322250368,1712913073186,-6220.28,0.0003041,2]
[322250369,1712913073196,-500.0,0.0003041,2]
[322250370,1712913073205,-500.0,0.0003041,2]
[322250371,1712913073214,-247.24739926,0.0003041,2]
[322250372,1712913073224,-500.0,0.0003041,2]
[322250373,1712913073233,-500.0,0.0003041,2]
[322250374,1712913073243,-652.05,0.0003041,2]
[322250375,1712913073252,-500.0,0.0003041,2]
[322250376,1712913073262,-500.0,0.0003041,2]
[322250377,1712913073270,-2583.5,0.0003041,2]
[322250378,1712913073280,-1053.91,0.0003041,2]
[322250379,1712913073289,-2164.81,0.0003041,2]
[322250380,1712913073299,-500.0,0.0003041,2]
[322250381,1712913073308,-151.0,0.0003041,7]
[322250382,1712913073318,-500.0,0.0003041,2]
[322250383,1712913073328,-500.0,0.0003041,2]
[322250384,1712913073339,-500.0,0.0003041,2]
[322250385,1712913073352,-1027.51,0.0003041,2]
[322250386,1712913073361,-500.0,0.0003041,2]
[322250387,1712913073371,-2080.21,0.0003041,2]
[322250388,1712913073380,-1105.7,0.0003041,2]
[322250389,1712913073390,-1530.77,0.0003041,2]
[322250390,1712913073400,-1722.55,0.0003041,2]
[322250391,1712913073409,-583.55,0.0003041,2]
[322250392,1712913073423,-500.0,0.0003041,2]
[322250393,1712913073433,-500.0,0.0003041,2]
[322250394,1712913073442,-1217.73,0.0003041,2]
[322250395,1712913073452,-11130.2,0.0003041,2]
[322250396,1712913073462,-821.08,0.0003041,2]
[322250397,1712913073471,-500.0,0.0003041,2]
[322250398,1712913073481,-500.0,0.0003041,2]
[322250399,1712913073491,-500.0,0.0003041,2]
[322250400,1712913073500,-1938.7,0.0003041,2]
[322250401,1712913073510,-500.0,0.0003041,2]
[322250402,1712913073520,-500.0,0.0003041,2]
[322250403,1712913073530,-930.87,0.0003041,2]
[322250404,1712913073539,-2176.5,0.0003041,2]
[322250405,1712913073549,-500.0,0.0003041,2]
[322250406,1712913073558,-500.0,0.0003041,2]
[322250407,1712913073568,-551.46,0.0003041,2]
[322250408,1712913073578,-2252.47,0.0003041,2]
[322250409,1712913073589,-500.0,0.0003041,2]
[322250410,1712913073602,-500.0,0.0003041,2]
[322250411,1712913073612,-500.0,0.0003041,2]
[322250412,1712913073622,-1111.76,0.0003041,2]
[322250413,1712913073632,-621.09,0.0003041,2]
[322250414,1712913073643,-779.64,0.0003041,2]
[322250415,1712913073652,-1124.57,0.0003041,2]
[322250416,1712913073663,-464.07004192,0.0003041,2]
[322250417,1712913073673,-389.50370357,0.0003041,2]